fUSD/lending_fUSD_20250413
["ID","MTS","AMOUNT","RATE_DAILY","PERIOD"]
[357916530,1744548641319,-150.0,0.00019944,2]
[357916531,1744548641328,-150.0,0.00019946,2]
[357916532,1744548641337,-150.0,0.00019947,2]
[357916533,1744548641347,-150.0,0.00019952,2]
[357916534,1744548641356,-150.0,0.00019953,2]
[357916535,1744548641366,-150.0,0.00019953,2]
[357916536,1744548641375,-150.0,0.00019956,2]
[357916537,1744548641385,-150.0,0.00019958,2]
[357916538,1744548641394,-150.0,0.00019958,2]
[357916539,1744548641404,-150.0,0.00019959,2]
[357916540,1744548641413,-150.0,0.00019964,2]
[357916541,1744548641422,-215.92,0.00019966,2]
[357916542,1744548641432,-150.0,0.00019967,2]
[357916543,1744548641442,-150.0,0.00019968,2]
[357916544,1744548641452,-150.0,0.00019972,2]
[357916545,1744548641461,-150.0,0.00019972,2]
[357916546,1744548641470,-6496.0,0.00019973,2]
[357916547,1744548641481,-165.41229476,0.00019973,2]
[357916548,1744548641491,-500.0,0.00019973,2]
[357916549,1744548641500,-500.0,0.00019973,2]
[357916550,1744548641510,-150.0,0.00019974,2]
[357916551,1744548641519,-150.0,0.00019974,2]
[357916552,1744548641529,-150.0,0.00019975,2]
[357916553,1744548641539,-150.0,0.00019976,2]
[357916554,1744548641548,-150.0,0.00019976,2]
[357916555,1744548641557,-215.92,0.00019976,2]
[357916556,1744548641567,-215.92,0.00019976,2]
[357916557,1744548641576,-215.92,0.00019976,2]
[357916558,1744548641585,-215.92,0.00019976,2]
[357916559,1744548641595,-150.0,0.00019977,2]
[357916560,1744548641605,-150.0,0.00019982,2]
[357916561,1744548641615,-150.0,0.00019984,2]
[357916562,1744548641624,-7800.893272,0.00019986,2]
[357916563,1744548641633,-1320.348285,0.00019986,2]
[357916564,1744548641643,-17629.1280295,0.00019986,2]
[357916565,1744548641653,-2298.0191798,0.00019986,2]
[357916566,1744548641662,-2417.5823502,0.00019986,2]
[357916567,1744548641672,-559.9185609,0.00019986,2]
[357916568,1744548641681,-56912.6395369,0.00019986,2]
[357916569,1744548641691,-910.0,0.0002,2]
[357916570,1744548641700,-304062.1024181,0.0002,2]
[357916571,1744548641710,-172207.84337578,0.0002,2]
[357916580,1744548642736,-18676.18246217,0.0002,2]
[357916662,1744548644054,-716010.87971966,0.0002,2]
[357916666,1744548644077,-344.10978337,0.0002,2]
[357916830,1744548645659,-650.08006,0.00019526,2]
[357916859,1744548645934,-933.90194,0.00019526,2]
[357916861,1744548645943,-2583.29805,0.0002,2]
[357916868,1744548645994,-5226.96990874,0.0002,2]
[357917974,1744549019299,5000.0,0.000299,60]
[357917975,1744549421698,709.15,0.00016828,2]
[357917976,1744549451366,200.0,0.0001801,2]
[357917977,1744549704373,300.0,0.0001792,2]
[357917981,1744549831683,-1403.37,0.00018339,2]
[357917982,1744549831694,-250.0,0.00018371,2]
[357917983,1744549831703,-1077.43,0.00018382,2]
[357917984,1744549831713,-166.86635937,0.00018626,2]
[357917985,1744549831723,-213.18,0.00018687,2]
[357917986,1744549831733,-213.18,0.00018692,2]
[357917987,1744549831743,-213.18,0.00018697,2]
[357917988,1744549831752,-183.85569825,0.00018701,2]
[357917989,1744549831764,-29.32430175,0.00018701,2]
[357917990,1744549831774,-213.18,0.00018706,2]
[357917991,1744549831784,-213.18,0.00018711,2]
[357917992,1744549831794,-213.18,0.00018716,2]
[357917993,1744549831803,-213.18,0.00018721,2]
[357917994,1744549831813,-213.18,0.00018726,2]
[357917995,1744549831822,-213.18,0.00018731,2]
[357917996,1744549831832,-213.18,0.00018736,2]
[357917997,1744549831841,-213.18,0.00018741,2]
[357917998,1744549831851,-213.18,0.00018746,2]
[357917999,1744549831861,-213.18,0.00018751,2]
[357918000,1744549831870,-213.18,0.00018755,2]
[357918001,1744549831880,-213.18,0.0001876,2]
[357918002,1744549831889,-213.18,0.00018765,2]
[357918003,1744549831899,-213.18,0.0001877,2]
[357918004,1744549831908,-213.18,0.00018775,2]
[357918005,1744549831917,-213.18,0.0001878,2]
[357918006,1744549831926,-250.0,0.00018826,2]
[357918007,1744549831936,-1261.1,0.00018871,2]
[357918008,1744549831945,-350.83,0.00018942,2]
[357918009,1744549831955,-250.0,0.00019,2]
[357918010,1744549831964,-500.0,0.00019,2]
[357918011,1744549831974,-709.15,0.00019092,2]
[357918012,1744549831983,-96.69598794,0.00019178,2]
[357918013,1744549831996,-403.30401206,0.00019178,2]
[357918014,1744549832006,-507.34991247,0.00019178,2]
[357918015,1744549832015,-565.58,0.00019178,2]
[357918016,1744549832024,-520.6,0.00019178,2]
[357918017,1744549832034,-1669.14,0.00019178,2]
[357918018,1744549832043,-500.0,0.00019178,2]
[357918019,1744549832054,-3854.1,0.00019178,2]
[357918020,1744549832063,-500.0,0.00019178,2]
[357918021,1744549832073,-4660.74370197,0.00019178,2]
[357918022,1744549832088,-2870.44053836,0.00019178,2]
[357918023,1744549832103,-960.44489124,0.00019178,2]
[357918024,1744549832118,-284.23252147,0.00019178,2]
[357918025,1744549832130,-385.1781132,0.00019178,2]
[357918026,1744549832141,-1410.54215506,0.00019178,2]
[357918036,1744549837802,-318.0177031,0.00019178,2]
[357918037,1744549837814,-382.55931209,0.00019178,2]
[357918038,1744549837976,-1132.17,0.00019178,2]
[357918039,1744549838036,-1599.20000014,0.00019178,2]
[357918040,1744549838048,-16605.40239768,0.00019178,2]
[357918041,1744549838057,-358.55095756,0.000192,2]
[357918042,1744549838067,-500.0,0.000192,2]
[357918043,1744549838077,-184.97,0.00019325,2]
[357918044,1744549838086,-166.86635937,0.00019352,2]
[357918045,1744549838096,-12737.75582815,0.00019442,2]
[357918046,1744549838105,-500.0,0.00019452,2]
[357918047,1744549838115,-565.58,0.00019452,2]
[357918048,1744549838124,-520.6,0.00019452,2]
[357918049,1744549838133,-1669.14,0.00019452,2]
[357918050,1744549838142,-500.0,0.00019452,2]
[357918051,1744549838152,-3854.1,0.00019452,2]
[357918052,1744549838166,-500.0,0.00019452,2]
[357918054,1744549838175,-2011.94224789,0.00019547,2]
[357918056,1744549838184,-150.0,0.0001964,2]
[357918058,1744549838193,-150.0,0.00019658,2]
[357918060,1744549838203,-150.0,0.00019664,2]
[357918062,1744549838212,-417.20064338,0.0001968,2]
[357918064,1744549838221,-7309.4475,0.000197,2]
[357918066,1744549838230,-2500.0,0.000197,2]
[357918067,1744549838239,-6247.73247942,0.000197,2]
[357918068,1744549838249,-435.7175,0.0001971,2]
[357918069,1744549838258,-6268.6552,0.0001971,2]
[357918070,1744549838267,-2603.2308,0.0001971,2]
[357918071,1744549838276,-1219.25756241,0.00019711,2]
[357918072,1744549838285,-1000.0,0.0001972,2]
[357918073,1744549838294,-1046.93360768,0.00019721,2]
[357918074,1744549838303,-411.37299284,0.00019725,2]
[357918075,1744549838312,-500.0,0.00019726,2]
[357918076,1744549838321,-565.58,0.00019726,2]
[357918077,1744549838330,-520.6,0.00019726,2]
[357918078,1744549838339,-1669.14,0.00019726,2]
[357918079,1744549838351,-500.0,0.00019726,2]
[357918080,1744549838362,-3854.1,0.00019726,2]
[357918081,1744549838374,-500.0,0.00019726,2]
[357918082,1744549838386,-150.0,0.00019728,2]
[357918083,1744549838398,-1219.25756239,0.00019732,2]
[357918084,1744549838410,-150.0,0.00019737,2]
[357918085,1744549838420,-150.0,0.00019738,2]
[357918086,1744549838430,-1000.0,0.0001974,2]
[357918087,1744549838441,-1219.25756239,0.00019753,2]
[357918088,1744549838453,-150.0,0.00019756,2]
[357918089,1744549838464,-165.41229476,0.00019773,2]
[357918090,1744549838475,-1219.25756239,0.00019774,2]
[357918091,1744549838486,-215.92,0.0001979,2]
[357918092,1744549838503,-215.92,0.0001979,2]
[357918093,1744549838515,-215.92,0.0001979,2]
[357918094,1744549838527,-215.92,0.0001979,2]
[357918095,1744549838539,-215.92,0.0001979,2]
[357918096,1744549838551,-150.0,0.00019791,2]
[357918097,1744549838563,-1219.25756239,0.00019795,2]
[357918098,1744549838575,-55761.90071991,0.000198,2]
[357918099,1744549838589,-1147.83,0.000198,2]
[357918100,1744549838601,-1772.36977612,0.000198,2]
[357918101,1744549838614,-1897.746352,0.000198,2]
[357918105,1744549840215,-519.40739127,0.000198,2]
[357918106,1744549840330,-1999.20541905,0.000198,2]
[357918107,1744549840439,-73575.40824165,0.000198,2]
[357918108,1744549840451,-437.3953,0.000198,2]
[357918109,1744549840463,-215.92,0.000198,2]
[357918110,1744549840475,-215.92,0.000198,2]
[357918111,1744549840486,-215.92,0.000198,2]
[357918112,1744549840503,-215.92,0.000198,2]
[357918113,1744549840514,-215.92,0.00019801,2]
[357918114,1744549840525,-227.88727649,0.00019809,2]
[357918115,1744549840550,-214.79228767,0.00019809,2]
[357918116,1744549840563,-89235.87604793,0.0001981,2]
[357918117,1744549840576,-1219.25756239,0.00019816,2]
[357918118,1744549840591,-1000.0,0.0001982,2]
[357918119,1744549840604,-13813.67367622,0.00019833,2]
[357918120,1744549840617,-1219.25756239,0.00019837,2]
[357918121,1744549840629,-200.0,0.0001984,2]
[357918122,1744549840642,-150.0,0.00019848,2]
[357918123,1744549840652,-13813.67367622,0.00019856,2]
[357918124,1744549840664,-1219.25756239,0.00019858,2]
[357918125,1744549840676,-150.0,0.00019863,2]
[357918126,1744549840687,-150.0,0.00019863,2]
[357918127,1744549840700,-150.0,0.00019863,2]
[357918128,1744549840715,-150.0,0.00019863,2]
[357918129,1744549840728,-227.308,0.00019863,2]
[357918130,1744549840740,-358.829,0.00019863,2]
[357918131,1744549840752,-13813.67367622,0.00019878,2]
[357918132,1744549840765,-1219.25756239,0.00019879,2]
[357918133,1744549840775,-173.248,0.00019897,2]
[357918134,1744549840785,-2483.158,0.00019897,2]
[357918135,1744549840796,-182.5249,0.000199,2]
[357918136,1744549840806,-163.37199918,0.000199,2]
[357918137,1744549840817,-220.99155637,0.000199,2]
[357918138,1744549840828,-177.84596547,0.000199,2]
[357918139,1744549840840,-13813.67367622,0.000199,2]
[357918140,1744549840854,-1219.25756239,0.000199,2]
[357918141,1744549840867,-206.69733318,0.000199,2]
[357918142,1744549840878,-1000.0,0.00019919,2]
[357918143,1744549840888,-531.38270503,0.0001997,2]
[357918144,1744549840898,-1450.85636268,0.0001997,2]
[357918145,1744549840908,-6496.0,0.00019973,2]
[357918146,1744549840918,-500.0,0.00019973,2]
[357918147,1744549840929,-500.0,0.00019973,2]
[357918148,1744549840940,-301.67970671,0.00019973,2]
[357918149,1744549840954,-318.66467404,0.00019973,2]
[357918150,1744549840965,-500.0,0.00019973,2]
[357918151,1744549840976,-500.0,0.00019973,2]
[357918152,1744549840987,-500.0,0.00019973,2]
[357918153,1744549840997,-505.88978665,0.00019973,2]
[357918154,1744549841008,-500.0,0.00019973,2]
[357918155,1744549841018,-500.0,0.00019973,2]
[357918156,1744549841028,-506.71275121,0.00019973,2]
[357918157,1744549841039,-500.0,0.00019973,2]
[357918158,1744549841049,-500.61611358,0.00019973,2]
[357918159,1744549841060,-500.0,0.00019973,2]
[357918160,1744549841074,-7859.7979097,0.00019986,2]
[357918161,1744549841085,-2456.1809238,0.00019986,2]
[357918162,1744549841097,-1891.799169,0.00019986,2]
[357918163,1744549841107,-33750.2155371,0.00019986,2]
[357918164,1744549841119,-911.0,0.0002,2]
[357918165,1744549841131,-412347.66313943,0.0002,2]
[357918166,1744549841142,-56224.30390811,0.0002,2]
[357918226,1744549844552,-758.57759602,0.0002,2]
[357918227,1744549844564,-3238.8379155,0.0002,2]
[357918228,1744549844576,-1618.75368924,0.0002,2]
[357918233,1744549845974,-722.0,0.0002,2]
[357918234,1744549845984,-22556.75518836,0.0002,2]
[357918235,1744549845993,-1218951.71080414,0.0002,2]
[357918236,1744549846004,-500.26,0.0002,2]
[357918237,1744549846014,-500.0,0.0002,2]
[357918238,1744549846023,-500.0,0.0002,2]
[357918239,1744549846034,-500.0,0.0002,2]
[357918240,1744549846043,-500.0,0.0002,2]
[357918241,1744549846053,-500.0,0.0002,2]
[357918242,1744549846063,-579.57,0.0002,2]
[357918243,1744549846073,-82472.50812027,0.0002,2]
[357918244,1744549846089,-7516.97117976,0.0002,2]
[357918245,1744549846100,-549.97235173,0.0002,2]
[357918246,1744549846111,-4064.28952,0.0002,2]
[357918247,1744549846123,-1041.98334023,0.0002,2]
[357918248,1744549846134,-24338.52814909,0.0002,2]
[357918249,1744549846143,-12522.03883092,0.0002,2]
[357918250,1744549846160,-1398.10406668,0.0002,2]
[357918251,1744549846171,-804.05490006,0.0002,2]
[357918254,1744550288543,500.0,0.00019,7]
[357918256,1744550809466,500.0,0.00019,7]
[357918257,1744550810280,500.0,0.00019,7]
[357918258,1744550916283,689.73,0.00016798,2]
[357918263,1744550941031,500.0,0.00019,7]
[357918264,1744550941792,500.0,0.00019,7]
[357918265,1744550942559,500.0,0.00019,7]
[357918266,1744550943305,500.0,0.00019,7]
[357918275,1744551009348,500.0,0.00019,7]
[357918276,1744551010120,500.0,0.00019,7]
[357918277,1744551010890,500.0,0.00019,7]
[357918278,1744551011644,500.0,0.00019,7]
[357918279,1744551012410,500.0,0.00019,7]
[357918289,1744551031882,-2974.17,0.00018655,2]
[357918290,1744551031892,-3820.8,0.00018731,2]
[357918292,1744551031902,-250.0,0.0001879,2]
[357918294,1744551031912,-250.0,0.00018849,2]
[357918295,1744551031922,-153.56,0.0001886,2]
[357918297,1744551031932,-1038.83,0.00018861,2]
[357918299,1744551031942,-1146.52,0.00018869,2]
[357918301,1744551031954,-1000.0,0.00018874,2]
[357918302,1744551031965,-186.78264093,0.00019,2]
[357918303,1744551031974,-689.73,0.00019062,2]
[357918304,1744551031983,-300.0,0.00019099,2]
[357918305,1744551031993,-5034.70835908,0.000191,2]
[357918306,1744551032008,-735.79155981,0.000191,2]
[357918307,1744551032066,-4751.45323182,0.000191,2]
[357918308,1744551032078,-5352.46690926,0.000191,2]
[357918309,1744551032127,-2200.469976,0.000191,2]
[357918310,1744551032188,-433.58598605,0.000191,2]
[357918325,1744551037995,-2128.78417941,0.000191,2]
[357918326,1744551038007,-379.10114332,0.000191,2]
[357918327,1744551038230,-1911.86871899,0.000191,2]
[357918328,1744551038294,-1563.46598488,0.000191,2]
[357918329,1744551038305,-325.27860792,0.000191,2]
[357918330,1744551038316,-4796.14829638,0.000191,2]
[357918331,1744551038327,-318.4355945,0.000191,2]
[357918363,1744551040133,-10042.27940445,0.000191,2]
[357918364,1744551040144,-527.13034601,0.000191,2]
[357918365,1744551040158,-739.270795,0.000191,2]
[357918366,1744551040259,-1716.04240173,0.000191,2]
[357918367,1744551040272,-500.0,0.00019178,2]
[357918368,1744551040291,-500.0,0.00019178,2]
[357918369,1744551040312,-500.0,0.00019178,2]
[357918370,1744551040327,-514.55005686,0.00019178,2]
[357918371,1744551040337,-517.36307501,0.00019178,2]
[357918372,1744551040347,-500.0,0.00019178,2]
[357918373,1744551040357,-500.0,0.00019178,2]
[357918374,1744551040367,-500.0,0.00019178,2]
[357918375,1744551040376,-215.06989819,0.00019178,2]
[357918376,1744551040385,-500.0,0.00019178,2]
[357918377,1744551040394,-500.0,0.00019178,2]
[357918378,1744551040403,-1460.5,0.00019178,2]
[357918379,1744551040413,-500.0,0.00019178,2]
[357918380,1744551040422,-3372.34,0.00019178,2]
[357918381,1744551040431,-500.0,0.00019178,2]
[357918382,1744551040441,-500.0,0.00019178,2]
[357918383,1744551040451,-437.3953,0.000194,2]
[357918384,1744551040461,-500.0,0.00019452,2]
[357918385,1744551040471,-500.0,0.00019452,2]
[357918386,1744551040480,-246.05769028,0.00019452,2]
[357918387,1744551040490,-507.4042146,0.00019452,2]
[357918388,1744551040499,-500.0,0.00019452,2]
[357918389,1744551040509,-500.0,0.00019452,2]
[357918390,1744551040520,-1460.5,0.00019452,2]
[357918391,1744551040529,-500.0,0.00019452,2]
[357918392,1744551040539,-3372.34,0.00019452,2]
[357918393,1744551040548,-500.0,0.00019452,2]
[357918394,1744551040557,-500.0,0.00019452,2]
[357918395,1744551040567,-600.0,0.000195,2]
[357918396,1744551040577,-102802.59090355,0.000195,7]
[357918397,1744551040586,-1000.0,0.00019686,2]
[357918398,1744551040596,-500.0,0.00019726,2]
[357918399,1744551040606,-500.0,0.00019726,2]
[357918400,1744551040614,-150.0,0.00019726,2]
[357918401,1744551040625,-500.0,0.00019726,2]
[357918402,1744551040634,-500.0,0.00019726,2]
[357918403,1744551040643,-1460.5,0.00019726,2]
[357918404,1744551040652,-500.0,0.00019726,2]
[357918405,1744551040661,-3372.34,0.00019726,2]
[357918406,1744551040671,-500.0,0.00019726,2]
[357918407,1744551040680,-500.0,0.00019726,2]
[357918408,1744551040691,-150.0,0.00019728,2]
[357918409,1744551040700,-150.0,0.00019732,2]
[357918410,1744551040709,-150.0,0.00019738,2]
[357918411,1744551040718,-150.0,0.00019757,2]
[357918412,1744551040727,-150.0,0.00019765,2]
[357918413,1744551040737,-150.0,0.00019769,2]
[357918414,1744551040746,-150.0,0.00019773,2]
[357918415,1744551040756,-150.0,0.00019776,2]
[357918416,1744551040766,-150.0,0.00019776,2]
[357918417,1744551040780,-154.22,0.00019776,2]
[357918418,1744551040789,-154.22,0.00019776,2]
[357918419,1744551040799,-150.0,0.00019783,2]
[357918420,1744551040809,-73575.4083,0.00019786,2]
[357918421,1744551040818,-150.0,0.00019788,2]
[357918422,1744551040827,-150.0,0.0001979,2]
[357918423,1744551040837,-150.0,0.00019791,2]
[357918424,1744551040847,-150.0,0.00019791,2]
[357918426,1744551040856,-1000.0,0.00019791,2]
[357918428,1744551040866,-150.0,0.00019792,2]
[357918430,1744551040879,-150.0,0.00019794,2]
[357918432,1744551040888,-150.0,0.00019795,2]
[357918433,1744551040899,-150.0,0.00019795,2]
[357918434,1744551040908,-154.22,0.000198,2]
[357918435,1744551040919,-154.22,0.000198,2]
[357918436,1744551040929,-154.22,0.000198,2]
[357918437,1744551040941,-150.0,0.00019801,2]
[357918438,1744551040952,-150.0,0.00019801,2]
[357918439,1744551040963,-150.0,0.00019802,2]
[357918440,1744551040973,-150.0,0.00019802,2]
[357918441,1744551040983,-150.0,0.00019805,2]
[357918442,1744551040993,-214.79228767,0.00019809,2]
[357918443,1744551041002,-227.88727649,0.00019809,2]
[357918444,1744551041012,-150.0,0.0001981,2]
[357918445,1744551041024,-150.0,0.0001981,2]
[357918446,1744551041034,-89235.87604793,0.0001981,2]
[357918447,1744551041043,-150.0,0.00019811,2]
[357918448,1744551041053,-150.0,0.00019813,2]
[357918449,1744551041062,-150.0,0.00019814,2]
[357918450,1744551041072,-150.0,0.00019815,2]
[357918451,1744551041081,-150.0,0.00019816,2]
[357918452,1744551041090,-150.0,0.00019819,2]
[357918453,1744551041100,-150.0,0.0001982,2]
[357918454,1744551041110,-150.0,0.00019828,2]
[357918455,1744551041119,-150.0,0.00019829,2]
[357918456,1744551041129,-150.0,0.00019829,2]
[357918457,1744551041138,-150.0,0.00019831,2]
[357918458,1744551041147,-150.0,0.00019832,2]
[357918459,1744551041156,-150.0,0.00019833,2]
[357918460,1744551041166,-150.0,0.00019833,2]
[357918461,1744551041175,-161.42640002,0.00019834,2]
[357918462,1744551041184,-150.0,0.00019835,2]
[357918463,1744551041194,-150.0,0.00019836,2]
[357918464,1744551041204,-150.0,0.00019837,2]
[357918465,1744551041213,-150.0,0.0001984,2]
[357918466,1744551041223,-200.0,0.0001984,2]
[357918467,1744551041233,-150.0,0.00019841,2]
[357918468,1744551041243,-150.0,0.00019847,2]
[357918469,1744551041252,-150.0,0.00019848,2]
[357918470,1744551041262,-150.0,0.00019848,2]
[357918471,1744551041273,-150.0,0.00019849,2]
[357918472,1744551041283,-150.0,0.00019858,2]
[357918473,1744551041292,-150.0,0.00019859,2]
[357918474,1744551041302,-150.0,0.0001986,2]
[357918475,1744551041312,-150.0,0.00019861,2]
[357918476,1744551041322,-150.0,0.00019862,2]
[357918477,1744551041331,-212.513,0.00019863,2]
[357918478,1744551041341,-358.829,0.00019863,2]
[357918479,1744551041351,-227.308,0.00019863,2]
[357918480,1744551041360,-150.0,0.00019865,2]
[357918481,1744551041370,-150.0,0.00019872,2]
[357918482,1744551041381,-150.0,0.00019874,2]
[357918483,1744551041390,-150.0,0.00019875,2]
[357918484,1744551041400,-150.0,0.00019876,2]
[357918485,1744551041411,-150.0,0.00019878,2]
[357918486,1744551041424,-150.0,0.00019878,2]
[357918487,1744551041434,-150.0,0.00019882,2]
[357918488,1744551041444,-154.22,0.00019884,2]
[357918489,1744551041454,-150.0,0.00019886,2]
[357918490,1744551041463,-682.34447816,0.00019886,2]
[357918491,1744551041473,-182.5249,0.00019886,2]
[357918492,1744551041482,-682.34447813,0.00019888,2]
[357918493,1744551041492,-150.0,0.00019888,2]
[357918494,1744551041502,-150.0,0.00019889,2]
[357918495,1744551041511,-682.34447813,0.00019889,2]
[357918496,1744551041522,-682.34447813,0.00019891,2]
[357918497,1744551041532,-150.0,0.00019891,2]
[357918498,1744551041542,-682.34447813,0.00019892,2]
[357918499,1744551041552,-682.34447813,0.00019894,2]
[357918500,1744551041562,-150.0,0.00019894,2]
[357918501,1744551041571,-173.248,0.00019895,2]
[357918502,1744551041581,-2483.158,0.00019895,2]
[357918503,1744551041590,-682.34447813,0.00019895,2]
[357918504,1744551041599,-682.34447813,0.00019897,2]
[357918505,1744551041609,-150.0,0.00019898,2]
[357918506,1744551041619,-682.34447813,0.00019898,2]
[357918507,1744551041629,-150.0,0.00019899,2]
[357918508,1744551041638,-163.37199918,0.000199,2]
[357918509,1744551041648,-150.0,0.000199,2]
[357918510,1744551041658,-177.84596547,0.000199,2]
[357918511,1744551041667,-682.34447813,0.000199,2]
[357918512,1744551041677,-220.99155637,0.000199,2]
[357918513,1744551041687,-206.69733318,0.000199,2]
[357918514,1744551041697,-150.0,0.000199,2]
[357918515,1744551041707,-150.0,0.00019901,2]
[357918516,1744551041717,-150.0,0.00019902,2]
[357918517,1744551041727,-150.0,0.00019903,2]
[357918518,1744551041736,-150.0,0.00019905,2]
[357918519,1744551041746,-150.0,0.00019906,2]
[357918520,1744551041755,-150.0,0.00019908,2]
[357918521,1744551041765,-150.0,0.00019909,2]
[357918522,1744551041777,-150.0,0.00019911,2]
[357918523,1744551041787,-417.20064338,0.00019916,2]
[357918524,1744551041796,-150.0,0.00019919,2]
[357918525,1744551041806,-150.0,0.00019923,2]
[357918526,1744551041815,-150.0,0.00019928,2]
[357918527,1744551041824,-150.0,0.0001993,2]
[357918528,1744551041834,-150.0,0.00019933,2]
[357918529,1744551041843,-150.0,0.00019933,2]
[357918530,1744551041854,-150.0,0.00019935,2]
[357918531,1744551041863,-150.0,0.00019935,2]
[357918532,1744551041874,-150.0,0.0001994,2]
[357918533,1744551041884,-150.0,0.00019944,2]
[357918534,1744551041896,-150.0,0.00019947,2]
[357918535,1744551041906,-150.0,0.00019949,2]
[357918536,1744551041916,-150.0,0.00019949,2]
[357918537,1744551041927,-150.0,0.0001995,2]
[357918538,1744551041937,-150.0,0.00019957,2]
[357918539,1744551041946,-150.0,0.00019958,2]
[357918540,1744551041955,-738.0,0.0001996,2]
[357918541,1744551041966,-150.0,0.00019963,2]
[357918542,1744551041976,-150.0,0.00019963,2]
[357918543,1744551041985,-531.38270503,0.0001997,2]
[357918544,1744551041995,-1450.85636268,0.0001997,2]
[357918545,1744551042004,-154.22,0.0001997,2]
[357918546,1744551042014,-150.0,0.00019971,2]
[357918547,1744551042024,-6496.0,0.00019973,2]
[357918548,1744551042033,-500.0,0.00019973,2]
[357918549,1744551042043,-318.66467404,0.00019973,2]
[357918550,1744551042052,-500.0,0.00019973,2]
[357918551,1744551042061,-500.0,0.00019973,2]
[357918552,1744551042071,-150.0,0.00019976,2]
[357918553,1744551042080,-150.0,0.00019977,2]
[357918554,1744551042090,-2526.3832164,0.00019986,2]
[357918555,1744551042099,-52452.5892439,0.00019986,2]
[357918556,1744551042108,-2960.0447713,0.00019986,2]
[357918557,1744551042117,-6351.7905641,0.00019986,2]
[357918558,1744551042126,-6110.4923482,0.00019986,2]
[357918559,1744551042136,-353.6403247,0.00019986,2]
[357918560,1744551042145,-150.0,0.00019987,2]
[357918561,1744551042155,-1000.0,0.00019988,2]
[357918562,1744551042165,-150.0,0.0001999,2]
[357918563,1744551042353,-62850.75277434,0.0001999,2]
[357918564,1744551042363,-150.0,0.00019994,2]
[357918565,1744551042372,-150.0,0.00019995,2]
[357918566,1744551042381,-151.0,0.00019999,2]
[357918567,1744551042390,-289530.02509588,0.0002,2]
[357918568,1744551042570,-16720.571917,0.0002,2]
[357918569,1744551042582,-28380.26594012,0.0002,2]
[357918586,1744551044525,-92170.77826721,0.0002,2]
[357918588,1744551045958,-305.16990016,0.00019947,2]
[357918589,1744551046133,-462.83009984,0.00019947,2]
[357918590,1744551046142,-453.9877483,0.0002,2]
[357918591,1744551046199,-453.0,0.0002,2]
[357918592,1744551046263,-632.43007,0.0002,2]
[357918593,1744551046327,-34006.60410092,0.0002,2]
[357918594,1744551046336,-7271.99589919,0.0002,2]
[357918598,1744551087859,2502877.28355763,0.00031,120]
[357918599,1744551112625,1915428.23945116,0.0003,120]
[357918600,1744551112653,500000.0,0.0003,120]
[357918601,1744551208160,500.0,0.00019,7]
[357918602,1744551208915,500.0,0.00019,7]
[357918603,1744551209661,500.0,0.00019,7]
[357918604,1744551210499,500.0,0.00019,7]
[357918605,1744551211452,500.0,0.00019,7]
[357918606,1744551306544,500.0,0.00019,7]
[357918607,1744551307746,500.0,0.00019,7]